fUSD/lending_fUSD_20250811
["ID","MTS","AMOUNT","RATE_DAILY","PERIOD"]
[378634792,1754934640661,-447.78,0.00016438,2]
[378634793,1754934640670,-400.0,0.00016438,2]
[378634794,1754934640679,-475.5,0.00016438,2]
[378634795,1754934640690,-665.57,0.00016438,2]
[378634796,1754934640699,-270.989162,0.00016438,2]
[378634797,1754934640708,-1547.52,0.00016438,2]
[378634798,1754934640717,-400.0,0.00016438,2]
[378634799,1754934640737,-587.65,0.00016438,2]
[378634800,1754934640746,-500.0,0.00016438,2]
[378634801,1754934640755,-400.0,0.00016438,2]
[378634802,1754934640765,-2611.13,0.00016438,2]
[378634803,1754934640779,-499.43,0.00016438,2]
[378634804,1754934640788,-400.0,0.00016438,2]
[378634805,1754934640797,-400.0,0.00016438,2]
[378634806,1754934640807,-400.0,0.00016438,2]
[378634807,1754934640817,-150.0,0.00016438,2]
[378634808,1754934640826,-652.07,0.00016438,2]
[378634809,1754934640835,-400.0,0.00016438,2]
[378634810,1754934640844,-400.0,0.00016438,2]
[378634811,1754934640855,-400.0,0.00016438,2]
[378634812,1754934640865,-566.3,0.00016438,2]
[378634813,1754934640875,-400.0,0.00016438,2]
[378634814,1754934640884,-544.77202927,0.00016438,2]
[378634815,1754934640893,-405.61,0.00016438,2]
[378634816,1754934640903,-400.0,0.00016438,2]
[378634817,1754934640912,-400.0,0.00016438,2]
[378634818,1754934640922,-401.22,0.00016438,2]
[378634819,1754934640931,-400.0,0.00016438,2]
[378634820,1754934640939,-400.0,0.00016438,2]
[378634821,1754934640948,-1709.31,0.00016438,2]
[378634822,1754934640957,-400.0,0.00016438,2]
[378634823,1754934640966,-400.0,0.00016438,2]
[378634824,1754934640976,-400.0,0.00016438,2]
[378634825,1754934640986,-580.5,0.00016438,2]
[378634826,1754934640995,-525.15,0.00016438,2]
[378634827,1754934641004,-400.0,0.00016438,2]
[378634828,1754934641014,-393.03835409,0.00016438,2]
[378634829,1754934641023,-400.0,0.00016438,2]
[378634830,1754934641033,-467.92,0.00016438,2]
[378634831,1754934641042,-400.0,0.00016438,2]
[378634832,1754934641052,-460.32,0.00016438,2]
[378634833,1754934641061,-400.0,0.00016438,2]
[378634834,1754934641070,-400.0,0.00016438,2]
[378634835,1754934641079,-400.0,0.00016438,2]
[378634836,1754934641087,-400.0,0.00016438,2]
[378634837,1754934641096,-1336.04,0.00016438,2]
[378634838,1754934641105,-400.0,0.00016438,2]
[378634839,1754934641114,-420.47,0.00016438,2]
[378634840,1754934641125,-785.84,0.00016438,2]
[378634841,1754934641134,-400.0,0.00016438,2]
[378634842,1754934641143,-416.27,0.00016438,2]
[378634843,1754934641152,-400.0,0.00016438,2]
[378634844,1754934641161,-1201.43,0.00016438,2]
[378634845,1754934641170,-400.0,0.00016438,2]
[378634846,1754934641179,-151.0,0.00016438,2]
[378634847,1754934641190,-400.0,0.00016438,2]
[378634848,1754934641199,-400.0,0.00016438,2]
[378634849,1754934641208,-400.0,0.00016438,2]
[378634850,1754934641218,-775.98,0.00016438,2]
[378634851,1754934641227,-400.0,0.00016438,2]
[378634852,1754934641238,-151.0,0.00016438,2]
[378634853,1754934641247,-151.0,0.00016438,2]
[378634854,1754934641256,-400.0,0.00016438,2]
[378634855,1754934641265,-976.88,0.00016438,2]
[378634856,1754934641274,-400.0,0.00016438,2]
[378634857,1754934641284,-400.0,0.00016438,2]
[378634858,1754934641293,-400.0,0.00016438,2]
[378634859,1754934641303,-790.77,0.00016438,2]
[378634860,1754934641312,-548.32,0.00016438,2]
[378634861,1754934641321,-408.92,0.00016438,2]
[378634862,1754934641330,-400.0,0.00016438,2]
[378634863,1754934641339,-400.0,0.00016438,2]
[378634864,1754934641348,-530.77,0.00016438,2]
[378634865,1754934641357,-403.39,0.00016438,2]
[378634866,1754934641367,-400.0,0.00016438,2]
[378634867,1754934641376,-297.42,0.00016438,2]
[378634868,1754934641385,-3126.15,0.00016438,2]
[378634869,1754934641394,-400.0,0.00016438,2]
[378634870,1754934641403,-400.0,0.00016438,2]
[378634871,1754934641413,-429.94,0.00016438,2]
[378634872,1754934641422,-400.0,0.00016438,2]
[378634873,1754934641432,-400.0,0.00016438,2]
[378634874,1754934641441,-400.0,0.00016438,2]
[378634875,1754934641450,-443.92,0.00016438,2]
[378634876,1754934641460,-4637.36,0.00016438,2]
[378634877,1754934641698,-644.67,0.00016438,2]
[378634878,1754934641708,-447.51,0.00016438,2]
[378634879,1754934641718,-582.58,0.00016438,2]
[378634880,1754934641728,-400.0,0.00016438,2]
[378634881,1754934641738,-400.0,0.00016438,2]
[378634882,1754934641747,-418.7,0.00016438,2]
[378634883,1754934641757,-400.0,0.00016438,2]
[378634884,1754934641768,-400.0,0.00016438,2]
[378634885,1754934641782,-400.0,0.00016438,2]
[378634886,1754934641791,-3232.98,0.00016438,2]
[378634887,1754934641800,-400.0,0.00016438,2]
[378634888,1754934641809,-614.94,0.00016438,2]
[378634889,1754934641819,-400.0,0.00016438,2]
[378634890,1754934641829,-695.91,0.00016438,2]
[378634891,1754934641838,-400.0,0.00016438,2]
[378634892,1754934641847,-400.0,0.00016438,2]
[378634893,1754934641857,-508.05,0.00016438,2]
[378634894,1754934641867,-477.29,0.00016438,2]
[378634895,1754934641876,-400.0,0.00016438,2]
[378634896,1754934641886,-1310.33,0.00016438,2]
[378634897,1754934641895,-400.0,0.00016438,2]
[378634898,1754934641906,-515.05,0.00016438,2]
[378634899,1754934641915,-649.75,0.00016438,2]
[378634900,1754934641924,-975.42,0.00016438,2]
[378634901,1754934641933,-400.0,0.00016438,2]
[378634902,1754934641945,-363.53142785,0.00016438,2]
[378634903,1754934641955,-400.0,0.00016438,2]
[378634904,1754934641964,-596.78,0.00016438,2]
[378634905,1754934641974,-467.56,0.00016438,2]
[378634906,1754934641983,-400.0,0.00016438,2]
[378634907,1754934641993,-680.3,0.00016438,2]
[378634908,1754934642002,-876.68,0.00016438,2]
[378634909,1754934642012,-400.0,0.00016438,2]
[378634910,1754934642021,-400.0,0.00016438,2]
[378634911,1754934642031,-569.73,0.00016438,2]
[378634912,1754934642040,-400.0,0.00016438,2]
[378634913,1754934642050,-400.0,0.00016438,2]
[378634914,1754934642059,-400.0,0.00016438,2]
[378634915,1754934642068,-400.0,0.00016438,2]
[378634916,1754934642078,-400.0,0.00016438,2]
[378634917,1754934642087,-588.66,0.00016438,2]
[378634918,1754934642096,-400.0,0.00016438,2]
[378634919,1754934642106,-400.0,0.00016438,2]
[378634920,1754934642115,-1392.1,0.00016438,2]
[378634921,1754934642125,-400.0,0.00016438,2]
[378634922,1754934642134,-904.0,0.00016438,2]
[378634923,1754934642143,-400.0,0.00016438,2]
[378634924,1754934642153,-401.36,0.00016438,2]
[378634925,1754934642162,-1033.72,0.00016438,2]
[378634926,1754934642172,-400.0,0.00016438,2]
[378634927,1754934642181,-400.0,0.00016438,2]
[378634928,1754934642191,-2243.66,0.00016438,2]
[378634929,1754934642200,-1367.58,0.00016438,2]
[378634930,1754934642209,-400.0,0.00016438,2]
[378634931,1754934642219,-797.91,0.00016438,2]
[378634932,1754934642228,-1122.2,0.00016438,2]
[378634933,1754934642237,-151.0,0.00016438,2]
[378634934,1754934642247,-513.67,0.00016438,2]
[378634935,1754934642256,-694.16,0.00016438,2]
[378634936,1754934642266,-1761.48,0.00016438,2]
[378634937,1754934642275,-500.0,0.00016438,2]
[378634938,1754934642285,-500.0,0.00016438,2]
[378634939,1754934642294,-400.0,0.00016438,2]
[378634940,1754934642303,-629.39,0.00016438,2]
[378634941,1754934642313,-400.0,0.00016438,2]
[378634942,1754934642324,-1306.05,0.00016438,2]
[378634943,1754934642333,-400.0,0.00016438,2]
[378634944,1754934642343,-498.66,0.00016438,2]
[378634945,1754934642352,-400.0,0.00016438,2]
[378634946,1754934642362,-611.47,0.00016438,2]
[378634947,1754934642372,-151.0,0.00016438,2]
[378634948,1754934642381,-731.91,0.00016438,2]
[378634949,1754934642391,-429.64,0.00016438,2]
[378634950,1754934642400,-400.0,0.00016438,2]
[378634951,1754934642410,-830.71,0.00016438,2]
[378634952,1754934642420,-400.0,0.00016438,2]
[378634953,1754934642430,-849.16,0.00016438,2]
[378634954,1754934642439,-400.0,0.00016438,2]
[378634955,1754934642448,-1435.2,0.00016438,2]
[378634956,1754934642458,-1042.65,0.00016438,2]
[378634957,1754934642468,-592.23,0.00016438,2]
[378634958,1754934642479,-909.53,0.00016438,2]
[378634959,1754934642488,-614.47,0.00016438,2]
[378634960,1754934642498,-400.0,0.00016438,2]
[378634961,1754934642508,-151.0,0.00016438,2]
[378634962,1754934642517,-151.0,0.00016438,2]
[378634963,1754934642526,-914.27,0.00016438,2]
[378634964,1754934642536,-679.65,0.00016438,2]
[378634965,1754934642546,-463.75029099,0.00016438,2]
[378634966,1754934642556,-660.74,0.00016438,2]
[378634967,1754934642566,-151.0,0.00016438,2]
[378634968,1754934642575,-151.0,0.00016438,2]
[378634969,1754934642584,-537.45,0.00016438,2]
[378634970,1754934642594,-1298.74,0.00016438,2]
[378634971,1754934642603,-2371.86,0.00016438,2]
[378634972,1754934642612,-408.58,0.00016438,2]
[378634973,1754934642622,-400.0,0.00016438,2]
[378634974,1754934642631,-1848.0,0.00016438,2]
[378634975,1754934642641,-1107.38,0.00016438,2]
[378634976,1754934642651,-2057.97,0.00016438,2]
[378634977,1754934642660,-400.0,0.00016438,2]
[378634978,1754934642670,-440.43,0.00016438,2]
[378634979,1754934642680,-1367.26,0.00016438,2]
[378634980,1754934642690,-400.0,0.00016438,2]
[378634981,1754934642699,-453.21163619,0.00016438,2]
[378634982,1754934642709,-400.0,0.00016438,2]
[378634983,1754934642718,-400.0,0.00016438,2]
[378634985,1754934642727,-400.0,0.00016438,2]
[378634986,1754934642736,-2103.58,0.00016438,2]
[378634987,1754934642745,-3095.57,0.00016438,2]
[378634988,1754934642755,-400.0,0.00016438,2]
[378634989,1754934642764,-565.31,0.00016438,2]
[378634990,1754934642777,-400.0,0.00016438,2]
[378634991,1754934642787,-584.76,0.00016438,2]
[378634992,1754934642796,-2330.86,0.00016438,2]
[378634993,1754934642805,-1941.83,0.00016438,2]
[378634994,1754934642815,-151.0,0.00016438,2]
[378634995,1754934642825,-151.0,0.00016438,2]
[378634996,1754934642834,-400.0,0.00016438,2]
[378634997,1754934642845,-400.0,0.00016438,2]
[378634998,1754934642854,-1432.66,0.00016438,2]
[378634999,1754934642864,-400.0,0.00016438,2]
[378635000,1754934642873,-705.23,0.00016438,2]
[378635001,1754934642883,-400.0,0.00016438,2]
[378635002,1754934642892,-400.0,0.00016438,2]
[378635003,1754934642902,-1072.86,0.00016438,2]
[378635004,1754934642911,-591.32,0.00016438,2]
[378635005,1754934642920,-446.19,0.00016438,2]
[378635006,1754934642930,-151.0,0.00016438,2]
[378635007,1754934642939,-610.07,0.00016438,2]
[378635008,1754934642949,-400.0,0.00016438,2]
[378635009,1754934642958,-400.0,0.00016438,2]
[378635010,1754934642968,-782.61,0.00016438,2]
[378635011,1754934642978,-400.0,0.00016438,2]
[378635012,1754934642987,-630.96,0.00016438,2]
[378635013,1754934642996,-547.67,0.00016438,2]
[378635014,1754934643006,-1768.93,0.00016438,2]
[378635015,1754934643015,-1000.63,0.00016438,2]
[378635016,1754934643025,-400.0,0.00016438,2]
[378635017,1754934643034,-720.08,0.00016438,2]
[378635018,1754934643043,-873.84,0.00016438,2]
[378635019,1754934643053,-919.41,0.00016438,2]
[378635020,1754934643062,-400.0,0.00016438,2]
[378635021,1754934643072,-151.0,0.00016438,2]
[378635022,1754934643081,-151.0,0.00016438,2]
[378635023,1754934643091,-400.0,0.00016438,2]
[378635024,1754934643100,-400.0,0.00016438,2]
[378635025,1754934643110,-513.09,0.00016438,2]
[378635026,1754934643119,-1775.57,0.00016438,2]
[378635027,1754934643133,-553.8,0.00016438,2]
[378635028,1754934643144,-776.34,0.00016438,2]
[378635029,1754934643154,-400.0,0.00016438,2]
[378635030,1754934643163,-1998.7,0.00016438,2]
[378635031,1754934643172,-441.93,0.00016438,2]
[378635032,1754934643181,-400.0,0.00016438,2]
[378635033,1754934643191,-400.0,0.00016438,2]
[378635034,1754934643200,-400.0,0.00016438,2]
[378635035,1754934643209,-939.54,0.00016438,2]
[378635036,1754934643219,-1105.45,0.00016438,2]
[378635037,1754934643228,-747.13,0.00016438,2]
[378635038,1754934643237,-2618.81,0.00016438,2]
[378635039,1754934643246,-400.0,0.00016438,2]
[378635040,1754934643256,-2304.46,0.00016438,2]
[378635041,1754934643265,-400.0,0.00016438,2]
[378635042,1754934643274,-920.93,0.00016438,2]
[378635043,1754934643284,-400.59,0.00016438,2]
[378635044,1754934643293,-909.63,0.00016438,2]
[378635045,1754934643302,-500.0,0.00016438,2]
[378635046,1754934643312,-465.77,0.00016438,2]
[378635047,1754934643322,-2612.83,0.00016438,2]
[378635048,1754934643331,-554.97,0.00016438,2]
[378635049,1754934643340,-579.24,0.00016438,2]
[378635050,1754934643350,-1228.97,0.00016438,2]
[378635051,1754934643359,-400.0,0.00016438,2]
[378635052,1754934643368,-2188.52,0.00016438,2]
[378635053,1754934643377,-150.0,0.00016438,2]
[378635054,1754934643386,-400.0,0.00016438,2]
[378635055,1754934643395,-827.99,0.00016438,2]
[378635056,1754934643404,-455.02,0.00016438,2]
[378635057,1754934643414,-500.0,0.00016438,2]
[378635058,1754934643423,-13197.55,0.00016438,2]
[378635059,1754934643432,-400.0,0.00016438,2]
[378635060,1754934643442,-523.27,0.00016438,2]
[378635061,1754934643451,-400.0,0.00016438,2]
[378635062,1754934643460,-150.0,0.00016438,2]
[378635063,1754934643470,-1595.93,0.00016438,2]
[378635064,1754934643479,-614.71,0.00016438,2]
[378635065,1754934643489,-150.0,0.00016438,2]
[378635066,1754934643499,-400.0,0.00016438,2]
[378635067,1754934643508,-435.05438267,0.00016438,2]
[378635068,1754934643518,-454.53,0.00016438,2]
[378635069,1754934643527,-566.94,0.00016438,2]
[378635070,1754934643536,-1087.42,0.00016438,2]
[378635071,1754934643546,-679.04,0.00016438,2]
[378635072,1754934643556,-1917.16,0.00016438,2]
[378635073,1754934643565,-583.48,0.00016438,2]
[378635074,1754934643575,-1034.39,0.00016438,2]
[378635075,1754934643584,-807.59,0.00016438,2]
[378635076,1754934643594,-517.83,0.00016438,2]
[378635077,1754934643604,-1213.48,0.00016438,2]
[378635078,1754934643615,-3675.84,0.00016438,2]
[378635079,1754934643624,-150.0,0.00016438,2]
[378635080,1754934643634,-403.03,0.00016438,2]
[378635081,1754934643643,-150.0,0.00016438,2]
[378635082,1754934643652,-511.66,0.00016438,2]
[378635083,1754934643662,-400.0,0.00016438,2]
[378635084,1754934643671,-1329.31,0.00016438,2]
[378635085,1754934643680,-1161.32,0.00016438,2]
[378635086,1754934643690,-500.0,0.00016438,2]
[378635087,1754934643699,-400.0,0.00016438,2]
[378635088,1754934643709,-151.0,0.00016438,2]
[378635089,1754934643719,-706.04,0.00016438,2]
[378635090,1754934643727,-151.0,0.00016438,2]
[378635091,1754934643736,-1574.19,0.00016438,2]
[378635092,1754934643746,-400.0,0.00016438,2]
[378635093,1754934643755,-400.0,0.00016438,2]
[378635094,1754934643764,-441.03,0.00016438,2]
[378635095,1754934643777,-400.0,0.00016438,2]
[378635096,1754934643787,-563.51,0.00016438,2]
[378635097,1754934643796,-150.0,0.00016438,2]
[378635098,1754934643805,-452.9,0.00016438,2]
[378635099,1754934643816,-1958.74,0.00016438,2]
[378635100,1754934643825,-1044.75,0.00016438,2]
[378635101,1754934643835,-6191.27,0.00016438,2]
[378635102,1754934643844,-516.68,0.00016438,2]
[378635103,1754934643854,-400.0,0.00016438,2]
[378635104,1754934643863,-1134.65,0.00016438,2]
[378635105,1754934643873,-400.0,0.00016438,2]
[378635106,1754934643882,-686.74,0.00016438,2]
[378635107,1754934643892,-590.51,0.00016438,2]
[378635108,1754934643901,-400.0,0.00016438,2]
[378635109,1754934643911,-407.04,0.00016438,2]
[378635110,1754934643921,-558.51,0.00016438,2]
[378635111,1754934643931,-400.0,0.00016438,2]
[378635112,1754934643940,-955.58,0.00016438,2]
[378635113,1754934643949,-1700.38,0.00016438,2]
[378635114,1754934643959,-400.0,0.00016438,2]
[378635115,1754934643969,-452.17,0.00016438,2]
[378635116,1754934643978,-400.0,0.00016438,2]
[378635117,1754934643987,-150.0,0.00016438,2]
[378635118,1754934643997,-768.08,0.00016438,2]
[378635119,1754934644086,-794.95,0.00016438,2]
[378635120,1754934644096,-150.0,0.00016438,2]
[378635121,1754934644105,-400.0,0.00016438,2]
[378635122,1754934644115,-150.0,0.00016438,2]
[378635123,1754934644125,-1167.11,0.00016438,2]
[378635124,1754934644134,-150.0,0.00016438,2]
[378635125,1754934644143,-500.0,0.00016438,2]
[378635126,1754934644152,-616.6,0.00016438,2]
[378635127,1754934644161,-400.0,0.00016438,2]
[378635128,1754934644170,-995.5,0.00016438,2]
[378635129,1754934644180,-412.81,0.00016438,2]
[378635130,1754934644189,-418.85,0.00016438,2]
[378635131,1754934644199,-890.66,0.00016438,2]
[378635132,1754934644208,-909.97,0.00016438,2]
[378635133,1754934644218,-400.0,0.00016438,2]
[378635134,1754934644228,-1000.0,0.00016438,2]
[378635135,1754934644237,-468.87,0.00016438,2]
[378635136,1754934644246,-400.0,0.00016438,2]
[378635137,1754934644255,-2907.08,0.00016438,2]
[378635138,1754934644264,-400.0,0.00016438,2]
[378635139,1754934644274,-400.0,0.00016438,2]
[378635140,1754934644284,-528.67,0.00016438,2]
[378635141,1754934644293,-640.24,0.00016438,2]
[378635142,1754934644302,-1024.24,0.00016438,2]
[378635143,1754934644311,-3147.02,0.00016438,2]
[378635144,1754934644321,-620.72,0.00016438,2]
[378635145,1754934644330,-400.0,0.00016438,2]
[378635146,1754934644339,-400.0,0.00016438,2]
[378635147,1754934644348,-588.98,0.00016438,2]
[378635148,1754934644357,-400.0,0.00016438,2]
[378635149,1754934644366,-400.0,0.00016438,2]
[378635150,1754934644375,-1583.0,0.00016438,2]
[378635151,1754934644385,-426.07,0.00016438,2]
[378635152,1754934644397,-400.0,0.00016438,2]
[378635153,1754934644407,-564.44,0.00016438,2]
[378635154,1754934644417,-400.0,0.00016438,2]
[378635155,1754934644427,-400.0,0.00016438,2]
[378635156,1754934644436,-1025.51,0.00016438,2]
[378635157,1754934644447,-400.0,0.00016438,2]
[378635158,1754934644457,-1382.93,0.00016438,2]
[378635159,1754934644467,-400.0,0.00016438,2]
[378635160,1754934644476,-400.0,0.00016438,2]
[378635161,1754934644485,-475.51,0.00016438,2]
[378635162,1754934644495,-771.56,0.00016438,2]
[378635163,1754934644504,-863.53,0.00016438,2]
[378635164,1754934644515,-1968.4,0.00016438,2]
[378635165,1754934644526,-400.0,0.00016438,2]
[378635166,1754934644535,-1046.96,0.00016438,2]
[378635167,1754934644545,-1121.82,0.00016438,2]
[378635168,1754934644555,-400.0,0.00016438,2]
[378635169,1754934644564,-549.79,0.00016438,2]
[378635170,1754934644573,-1748.24,0.00016438,2]
[378635171,1754934644582,-400.0,0.00016438,2]
[378635172,1754934644591,-697.31,0.00016438,2]
[378635173,1754934644600,-400.0,0.00016438,2]
[378635174,1754934644609,-500.0,0.00016438,2]
[378635175,1754934644620,-600.0,0.00016438,2]
[378635176,1754934644629,-600.0,0.00016438,2]
[378635177,1754934644638,-600.0,0.00016438,2]
[378635178,1754934644648,-600.0,0.00016438,2]
[378635179,1754934644657,-600.0,0.00016438,2]
[378635180,1754934644666,-600.0,0.00016438,2]
[378635181,1754934644675,-600.0,0.00016438,2]
[378635182,1754934644684,-600.0,0.00016438,2]
[378635183,1754934644693,-600.0,0.00016438,2]
[378635184,1754934644702,-600.0,0.00016438,2]
[378635185,1754934644711,-549.72793957,0.00016438,2]
[378635186,1754934644720,-2322.22639,0.0001644,2]
[378635187,1754934644729,-150.0,0.00016444,2]
[378635188,1754934644739,-150.0,0.0001645,2]
[378635189,1754934644747,-150.0,0.00016468,2]
[378635190,1754934644757,-500.0,0.00016473,2]
[378635191,1754934644766,-200.0,0.00016473,2]
[378635192,1754934644779,-200.0,0.00016473,2]
[378635193,1754934644788,-2524.82941417,0.0001648,2]
[378635194,1754934644798,-500.0,0.00016493,2]
[378635195,1754934644807,-163.06715,0.00016497,2]
[378635196,1754934644817,-500.0,0.00016497,2]
[378635197,1754934644826,-775.56,0.00016497,2]
[378635198,1754934644835,-760.05,0.00016497,2]
[378635199,1754934644844,-1924.99,0.00016497,2]
[378635200,1754934644855,-2619.54,0.00016497,2]
[378635201,1754934644865,-528.98,0.00016497,2]
[378635202,1754934644874,-400.0,0.00016497,2]
[378635203,1754934644883,-269.529772,0.00016498,2]
[378635204,1754934644892,-269.550016,0.00016498,2]
[378635205,1754934644901,-269.550016,0.00016498,2]
[378635206,1754934644910,-151.0,0.00016498,2]
[378635207,1754934644920,-396.6687,0.00016506,2]
[378635208,1754934644929,-3345.74533991,0.0001651,2]
[378635209,1754934644939,-2734.93327573,0.0001651,2]
[378635210,1754934644949,-2618.2481025,0.00016535,2]
[378635211,1754934644958,-500.0,0.00016548,2]
[378635212,1754934644968,-150.0,0.0001655,2]
[378635213,1754934644977,-150.0,0.0001655,2]
[378635214,1754934644985,-150.0,0.0001655,2]
[378635215,1754934644995,-151.0,0.0001657,2]
[378635216,1754934645005,-151.0,0.0001657,2]
[378635217,1754934645014,-151.0,0.0001657,2]
[378635218,1754934645023,-243.180883,0.0001657,2]
[378635219,1754934645033,-243.180883,0.0001657,2]
[378635220,1754934645042,-150.0,0.00016578,2]
[378635221,1754934645052,-2715.12328229,0.0001659,2]
[378635222,1754934645061,-151.0,0.00016597,2]
[378635223,1754934645071,-151.0,0.00016597,2]
[378635224,1754934645080,-249.078247,0.00016597,2]
[378635225,1754934645090,-249.078247,0.00016597,2]
[378635226,1754934645099,-151.0,0.00016597,2]
[378635227,1754934645108,-797.4,0.000166,2]
[378635228,1754934645117,-796.99,0.000166,2]
[378635229,1754934645126,-467.96,0.000166,2]
[378635230,1754934645135,-467.96,0.000166,2]
[378635231,1754934645144,-1593.98,0.000166,2]
[378635232,1754934645153,-400.0,0.000166,6]
[378635233,1754934645162,-500.0,0.00016603,2]
[378635234,1754934645171,-596.78,0.00016605,2]
[378635235,1754934645180,-150.0,0.00016606,2]
[378635236,1754934645189,-400.0,0.00016606,2]
[378635237,1754934645197,-850.32,0.00016606,2]
[378635238,1754934645207,-151.0,0.00016606,2]
[378635239,1754934645216,-1340.34,0.00016606,2]
[378635240,1754934645225,-677.76,0.00016606,2]
[378635241,1754934645234,-953.87,0.00016606,2]
[378635242,1754934645243,-1444.32,0.00016606,2]
[378635243,1754934645252,-425.59,0.00016606,2]
[378635244,1754934645262,-8487.99,0.00016606,2]
[378635245,1754934645271,-906.22,0.00016606,2]
[378635246,1754934645280,-151.0,0.00016606,2]
[378635247,1754934645289,-435.5043,0.00016606,2]
[378635248,1754934645298,-435.5043,0.00016606,2]
[378635249,1754934645307,-1183.17,0.00016606,2]
[378635250,1754934645316,-1454.02,0.00016606,2]
[378635251,1754934645325,-678.76,0.00016606,2]
[378635252,1754934645335,-1672.45,0.00016606,2]
[378635253,1754934645343,-983.17,0.00016606,2]
[378635254,1754934645352,-734.7,0.00016606,2]
[378635255,1754934645361,-2481.29,0.00016606,2]
[378635256,1754934645370,-151.0,0.00016606,2]
[378635257,1754934645379,-2394.91,0.00016606,2]
[378635258,1754934645388,-500.0,0.00016606,2]
[378635259,1754934645397,-277.08257862,0.00016606,2]
[378635260,1754934645406,-151.0,0.00016606,2]
[378635261,1754934645414,-275.206648,0.00016606,2]
[378635262,1754934645424,-1251.02,0.00016606,2]
[378635263,1754934645433,-1228.63,0.00016606,2]
[378635264,1754934645442,-1796.63,0.00016606,2]
[378635265,1754934645451,-151.0,0.00016607,2]
[378635266,1754934645459,-159.26861,0.00016607,2]
[378635267,1754934645469,-159.26861,0.00016607,2]
[378635268,1754934645478,-151.0,0.00016607,2]
[378635269,1754934645487,-151.0,0.00016607,2]
[378635270,1754934645497,-151.0,0.00016607,2]
[378635271,1754934645506,-161.102259,0.00016607,2]
[378635272,1754934645516,-151.0,0.00016607,2]
[378635273,1754934645525,-206.595466,0.00016607,2]
[378635274,1754934645535,-206.595466,0.00016607,2]
[378635275,1754934645544,-151.0,0.00016607,2]
[378635276,1754934645553,-2297.08,0.00016607,2]
[378635277,1754934645562,-1130.84,0.00016607,2]
[378635278,1754934645571,-544.96,0.00016607,2]
[378635279,1754934645580,-813.5,0.00016607,2]
[378635280,1754934645589,-151.0,0.00016607,2]
[378635281,1754934645599,-513.05,0.00016607,2]
[378635282,1754934645608,-173.728884,0.00016607,2]
[378635283,1754934645618,-1640.89,0.00016607,2]
[378635284,1754934645627,-151.0,0.00016607,2]
[378635285,1754934645636,-400.0,0.00016607,2]
[378635286,1754934645646,-2867.41,0.00016607,2]
[378635287,1754934645655,-151.0,0.00016607,2]
[378635288,1754934645665,-2069.64,0.00016607,2]
[378635289,1754934645674,-2513.26,0.00016607,2]
[378635290,1754934645683,-1435.03,0.00016607,2]
[378635291,1754934645692,-150.0,0.0001661,2]
[378635292,1754934645701,-150.0,0.0001661,2]